Workbook

Sheet 入力シート
D1: 三次調整力②基準値計画入力支援ツール | G1: 【重要】本ツールは，三次②基準値計画受等領業務ビジネスプロトコル標準規格のパブリックコメント前に作成したため，規格が変更となる可能性があります。本ツールで作成したXMLファイルを需給調整市場システムへ提出した場合，未提出扱いとします。
D3: 対象年月日 | E3: 20210405 | F3: 読込ファイル名 | G3: C:\Users\T1202480\Desktop\XML\W9_0132_20210405_07_3Y5ZZ.xml
D4: 対象商品ブロック | E4: ブロック② | F4: 出力先 | G4: C:\Users\T1202480\Desktop
D5: 対象需要家リスト・パターン | E5: パターン④
D6: 基本情報 | J6: 出力ファイル名情報
E7: コード | F7: 名称▲ | J7: XMLファイル名 | K7: ="W9_0132_"&K8&"_"&K9&"_"&K10&".xml" -> W9_0132_20210405_07_3Y5ZZ.xml
D8: 情報区分 | E8: 0132 | F8: 三次調整力 ②基準値計画 | J8: 対象時期の開始日 | K8: =E3 -> 20210405
D9: 提出先事業者 | E9: 10033 | F9: 東京電力パワーグリッド株式会社 | J9: 約定対象開始コマ番号 | K9: 07
D10: 送信事業者 | E10: 80363 | F10: グローバルエナジーアグリゲーター | J10: アグリゲータ用系統コード | K10: =E11 -> 3Y5ZZ
D11: 提出者（アグリゲータ用系統コード） | E11: 3Y5ZZ | F11: グローバルエナジーアグリゲーター
D12: 運用モード | E12: 通常
D14: 合計基準値 | E14: 基準値内訳
E15: 需要ＢＧ1 | F15: 需要BG2 | G15: 需要BG3 | H15: 需要BG4 | I15: 需要BG5 | J15: 需要BG6 | K15: 需要BG7
D16: 合計基準値＝ Σ基準値内訳 | E16: 需要BGコード | F16: 需要BGコード | G16: 需要BGコード | H16: 需要BGコード | I16: 需要BGコード | J16: 需要BGコード | K16: 需要BGコード
E17: LA393 | F17: LB643 | G17: LC543 | H17: LD773 | I17: LE433 | J17: LF783 | K17: LG893
E18: 需要BG名称▲ | F18: 需要BG名称▲ | G18: 需要BG名称▲ | H18: 需要BG名称▲ | I18: 需要BG名称▲ | J18: 需要BG名称▲ | K18: 需要BG名称▲
E19: 関東でんき | F19: 東京みらいエナジー | G19: エコネットライフ | H19: センターアイ・パワー | I19: サスティナブル・ライフ | J19: OKでんき | K19: P2Pコンソーシアム
A20: 対象ブロック | B20: # | C20: 時間帯 | D20: 合計基準値(kWh) | E20: 基準値(kWh) | F20: 基準値(kWh) | G20: 基準値(kWh) | H20: 基準値(kWh) | I20: 基準値(kWh) | J20: 基準値(kWh) | K20: 基準値(kWh)
A21: ブロック① | B21: 47 | C21: 23:00～23:30
B22: 48 | C22: 23:30～24:00
B23: 01 | C23: 0:00～0:30
B24: 02 | C24: 0:30～1:00
B25: 03 | C25: 1:00～1:30
B26: 04 | C26: 1:30～2:00
B27: 05 | C27: 2:00～2:30 | D27: =SUM(E27:K27) -> 7470 | E27: 3800 | F27: 123 | G27: 543 | H27: 463 | I27: 1001 | J27: 892 | K27: 648
B28: 06 | C28: 2:30～3:00 | D28: =SUM(E28:K28) -> 7390 | E28: 3650 | F28: 154 | G28: 556 | H28: 458 | I28: 1003 | J28: 873 | K28: 696
A29: ブロック② | B29: 07 | C29: 3:00～3:30 | D29: =SUM(E29:K29) -> 7009 | E29: 3250 | F29: 165 | G29: 559 | H29: 493 | I29: 1005 | J29: 882 | K29: 655
B30: 08 | C30: 3:30～4:00 | D30: =SUM(E30:K30) -> 7213 | E30: 3250 | F30: 189 | G30: 585 | H30: 474 | I30: 1160 | J30: 877 | K30: 678
B31: 09 | C31: 4:00～4:30 | D31: =SUM(E31:K31) -> 7299 | E31: 3250 | F31: 256 | G31: 575 | H31: 454 | I31: 1220 | J31: 855 | K31: 689
B32: 10 | C32: 4:30～5:00 | D32: =SUM(E32:K32) -> 7489 | E32: 3550 | F32: 265 | G32: 569 | H32: 463 | I32: 1140 | J32: 846 | K32: 656
B33: 11 | C33: 5:00～5:30 | D33: =SUM(E33:K33) -> 7572 | E33: 3560 | F33: 264 | G33: 565 | H33: 489 | I33: 1211 | J33: 825 | K33: 658
B34: 12 | C34: 5:30～6:00 | D34: =SUM(E34:K34) -> 7643 | E34: 3650 | F34: 289 | G34: 535 | H34: 414 | I34: 1265 | J34: 865 | K34: 625
A35: ブロック③ | B35: 13 | C35: 6:00～6:30
B36: 14 | C36: 6:30～7:00
B37: 15 | C37: 7:00～7:30
B38: 16 | C38: 7:30～8:00
B39: 17 | C39: 8:00～8:30
B40: 18 | C40: 8:30～9:00
A41: ブロック④ | B41: 19 | C41: 9:00～9:30
B42: 20 | C42: 9:30～10:00
B43: 21 | C43: 10:00～10:30
B44: 22 | C44: 10:30～11:00
B45: 23 | C45: 11:00～11:30
B46: 24 | C46: 11:30～12:00
A47: ブロック⑤ | B47: 25 | C47: 12:00～12:30
B48: 26 | C48: 12:30～13:00
B49: 27 | C49: 13:00～13:30
B50: 28 | C50: 13:30～14:00
B51: 29 | C51: 14:00～14:30
B52: 30 | C52: 14:30～15:00
A53: ブロック⑥ | B53: 31 | C53: 15:00～15:30
B54: 32 | C54: 15:30～16:00
B55: 33 | C55: 16:00～16:30
B56: 34 | C56: 16:30～17:00
B57: 35 | C57: 17:00～17:30
B58: 36 | C58: 17:30～18:00
A59: ブロック⑦ | B59: 37 | C59: 18:00～18:30
B60: 38 | C60: 18:30～19:00
B61: 39 | C61: 19:00～19:30
B62: 40 | C62: 19:30～20:00
B63: 41 | C63: 20:00～20:30
B64: 42 | C64: 20:30～21:00
A65: ブロック⑧ | B65: 43 | C65: 21:00～21:30
B66: 44 | C66: 21:30～22:00
B67: 45 | C67: 22:00～22:30
B68: 46 | C68: 22:30～23:00
B69: 47 | C69: 23:00～23:30
B70: 48 | C70: 23:30～24:00
B71: 対象約定ブロック合計 | D71: =SUM(D29:D34) -> 44225 | E71: 20510 | F71: 1428 | G71: 3388 | H71: 2787 | I71: 7001 | J71: 5150 | K71: 3961

Sheet 使い方
A1: 基準値計画入力支援ツールの使用方法
A4: ①事前準備
A5: 本マクロは，スキーマと共に使用します。下図の通り，本マクロとスキーマ（ファイル名：OCTO-W9-0132-0001.xsd)を同一フォルダに保存して下さい。
A30: ②起動ボタンの説明
F31: 本ツールは用途に合わせ，左図のボタンを押下して使用します。 各ボタンの機能は，下記の通りです。 ・『対象商品ブロック変更』ボタン 作成する基準値計画の対象となる商品ブロックを選択します。 ・『需要BG数変更』ボタン 作成する基準値計画の内訳となる需要BG数を変更します。 ・『基準値XML読込』ボタン 過去に作成した基準値計画のXMLファイルを読み込みます。 ・『基準値XML出力』ボタン 入力シートで作成した基準値計画をXMLファイル形式で出力します。 ・『XMLファイル妥当性検証』ボタン 本ツール以外で作成した基準値計画のXMLをスキーマと照合してビジネスプロトコル標準規格に準拠しているか妥当性を検証します。なお，本ツールでXMLファイルの読み込みおよび出力を行った場合，スキーマによる妥当性を検証しているため，この操作は不要です。 ・『終了（上書保存）』ボタン 入力シートを上書き保存した後，本エクセルブックを閉じます。
A49: ③入力項目の説明
A50: 本ツールは，『入力シート』の白色セルの所定の項目を入力した上で，XMLファイルに変換します。白色セルで『▲』マークが記されていない箇所は，必須入力項目です。具体的な入力方法は次項以降で説明します。
A54: ③－１ ファイル情報の入力
A55: ファイル情報の具体的な入力規則は下記の通りです。
A56: 対象年月日 | E56: 20210405 | G56: 対象年月日は『YYYYMMDD』形式で半角数字8桁で入力。
A57: 対象商品ブロック | E57: ブロック② | G57: 対象商品ブロックは，『対象商品ブロック変更』ボタンを押下して選択。
A58: 対象需要家リスト・パターン | E58: パターン④ | G58: パターンは原則『パターン①』～『パターン⑩』を選択。
A60: ③－２ 基本情報の入力
A61: 基本情報の具体的な入力規則は下記の通りです。
A62: 基本情報
G63: コード | I63: 名称▲
A64: 情報区分 | G64: 0132 | I64: 3次②基準値計画
A65: 提出先事業者 | G65: 10033 | I65: 東京電力パワーグリッド株式会社
A66: 送信事業者 | G66: 80363 | I66: グローバルエナジーアグリゲーター
A67: 提出者（アグリゲーター用系統コード） | G67: 3Y543 | I67: グローバルエナジーアグリゲーター
A68: 運用モード | G68: 通常
A70: 情報区分は，自動入力（W9_0132で三次②基準値計画を意味します）。
A71: 提出先事業者は，作成する基準値計画が対象するリソースにおける属地エリアの一般送配電事業者を入力。
A72: 送信事業者は，送信事業者コードと事業者名称を入力。
A73: 運用モードは，約定したリソースの基準値計画として需給調整市場システムに提出する場合，『通常』を選択。
A75: ③－３ 基準値の入力
A76: 基準値の具体的な入力規則は下記の通りです。
F77: アグリゲーター 合計基準値 | I77: 基準値内訳
I78: 需要ＢＧ1
F79: アグリゲーター 合計＝ Σ需要基準値内訳 | I79: 需要BGコード | K79: 需要BGコードは，リソースが所属する需要BGのコードを半角英数字5桁で入力。
I80: LA393
I81: 需要BG名称▲ | K81: 需要BG名称は，リソースが所属する需要BGの名称を50文字以内で任意入力。
I82: 関東でんき
A83: 対象ブロック | C83: # | D83: 時間帯 | F83: 合計基準値(kWh) | I83: BG基準値(kWh)
A84: ブロック① | C84: 47 | D84: 23:00～23:30
C85: 48 | D85: 23:30～24:00
C86: 01 | D86: 0:00～0:30
C87: 02 | D87: 0:30～1:00
C88: 03 | D88: 1:00～1:30
C89: 04 | D89: 1:30～2:00
C90: 05 | D90: 2:00～2:30 | F90: 3800 | I90: 3800 | K90: BG基準値(kWh）は，リソースが需要抑制を実施しなかった場合の接続対象電力量(kWh)を需要BGかつ30分コマ単位に半角整数で入力。
C91: 06 | D91: 2:30～3:00 | F91: 3650 | I91: 3650
A92: ブロック② | C92: 07 | D92: 3:00～3:30 | F92: 3250 | I92: 3250
C93: 08 | D93: 3:30～4:00 | F93: 3250 | I93: 3250
C94: 09 | D94: 4:00～4:30 | F94: 3250 | I94: 3250
C95: 10 | D95: 4:30～5:00 | F95: 3550 | I95: 3550
C96: 11 | D96: 5:00～5:30 | F96: 3560 | I96: 3560
C97: 12 | D97: 5:30～6:00 | F97: 3650 | I97: 3650

Sheet Add_Plan_Style (hidden)
B14: 基準値内訳
B15: 需要ＢＧ1
B16: 需要BGコード
B18: 需要BG名称▲
B20: 基準値(kWh)
B71: =SUM(B29:B34) -> 0

Sheet Input_Sheet (予備) (hidden)
A1: 三次②基準値計画入力支援ツール
D2: 20k16o20I16K!
D3: 対象年月日 | E3: 20210403 | F3: 読込ファイル名 | G3: C:\Users\Desktop\提出ファイル\20210402_7_3Y**5_8.xml
D4: 対象商品ブロック | E4: ブロック③ | F4: 出力先 | G4: C:\Users\Desktop\提出ファイル
D5: 対象需要家パターン | E5: パターン⑮ | F5: Zip.exeのフルパス | G5: C:\Program Files (x86)\Lhaplus\Lhaplus.exe
D6: 基本情報 | J6: 出力ファイル名情報
E7: コード | F7: 名称▲ | J7: XMLファイル名 | K7: =K8&"_"&K9&"_"&K10&"_"&K11&"_"&K12&".xml" -> 20210403_13_18_3Y543_15.xml
D8: 情報区分 | E8: 0110 | F8: 3次②基準値計画 | J8: 対象時期の開始日 | K8: =E3 -> 20210403
D9: 提出先事業者 | E9: 10033 | F9: 東京電力パワーグリッド株式会社 | J9: 約定対象開始コマ | K9: 13
D10: 送信事業者 | E10: 80363 | F10: グローバルエナジーアグリゲーター | J10: 約定対象終了コマ | K10: 18
D11: 提出者 | E11: 3Y543 | F11: グローバルエナジーアグリゲーター | J11: 系統コード | K11: =E11 -> 3Y543
D12: 運用モード | E12: 通常 | J12: 対象需要家パターン | K12: =IF(E5="パターン①","01",IF(E5="パターン②","02",IF(E5="パターン③","03",IF(E5="パターン④","04",IF(E5="パターン⑤","05",IF(E5="パターン⑥","06",IF(E5="パターン⑦","07",IF(E5="パターン⑧","08",IF(E5="パターン⑨","09",IF(E5="パターン⑩","10",IF( E5="パターン⑪","11",IF(E5="パターン⑫","12",IF(E5="パターン⑬","13",IF(E5="パターン⑭","14",IF(E5="パターン⑮","15",IF(E5="パターン⑯","16",IF(E5="パターン⑰","17",IF(E5="パターン⑱","18",IF(E5="パターン⑲","19",IF(E5="パターン⑳","20")))))))))))))))))))) -> 15
D14: アグリゲーター合計基準値 | E14: 基準値内訳
E15: 需要ＢＧ1 | F15: 需要BG2 | G15: 需要BG3 | H15: 需要BG4 | I15: 需要BG5 | J15: 需要BG6 | K15: 需要BG7 | L15: 需要BG8 | M15: 需要BG9
D16: アグリゲーター合計＝ Σ需要基準値内訳 | E16: 需要BGコード | F16: 需要BGコード | G16: 需要BGコード | H16: 需要BGコード | I16: 需要BGコード | J16: 需要BGコード | K16: 需要BGコード | L16: 需要BGコード | M16: 需要BGコード
E17: LA393 | F17: LB643 | G17: LC543 | H17: LD773 | I17: LE433 | J17: LF783 | K17: LG893
E18: 需要BG名称▲ | F18: 需要BG名称▲ | G18: 需要BG名称▲ | H18: 需要BG名称▲ | I18: 需要BG名称▲ | J18: 需要BG名称▲ | K18: 需要BG名称▲ | L18: 需要BG名称▲ | M18: 需要BG名称▲
E19: 飛田新地 | F19: 信太山 | G19: 黄金町 | H19: 伊勢崎 | I19: 太田 | J19: 西川口 | K19: 中洲
A20: 対象ブロック | B20: # | C20: 時間帯 | D20: 合計基準値(kWh) | E20: BG基準値(kWh) | F20: BG基準値(kWh) | G20: BG基準値(kWh) | H20: BG基準値(kWh) | I20: BG基準値(kWh) | J20: BG基準値(kWh) | K20: BG基準値(kWh) | L20: BG基準値(kWh) | M20: BG基準値(kWh)
A21: ブロック① | B21: 47 | C21: 23:00～23:30
B22: 48 | C22: 23:30～24:00
B23: 01 | C23: 0:00～0:30
B24: 02 | C24: 0:30～1:00
B25: 03 | C25: 1:00～1:30
B26: 04 | C26: 1:30～2:00
B27: 05 | C27: 2:00～2:30
B28: 06 | C28: 2:30～3:00
A29: ブロック② | B29: 07 | C29: 3:00～3:30
B30: 08 | C30: 3:30～4:00
B31: 09 | C31: 4:00～4:30
B32: 10 | C32: 4:30～5:00
B33: 11 | C33: 5:00～5:30 | D33: =SUM(E33:M33) -> 3676 | E33: 6 | F33: 123 | G33: 543 | H33: 463 | I33: 1001 | J33: 892 | K33: 648
B34: 12 | C34: 5:30～6:00 | D34: 3746 | E34: 6 | F34: 154 | G34: 556 | H34: 458 | I34: 1003 | J34: 873 | K34: 696
A35: ブロック③ | B35: 13 | C35: 6:00～6:30 | D35: 3765 | E35: 6 | F35: 165 | G35: 559 | H35: 493 | I35: 1005 | J35: 882 | K35: 655
B36: 14 | C36: 6:30～7:00 | D36: 3969 | E36: 6 | F36: 189 | G36: 585 | H36: 474 | I36: 1160 | J36: 877 | K36: 678
B37: 15 | C37: 7:00～7:30 | D37: 4055 | E37: 6 | F37: 256 | G37: 575 | H37: 454 | I37: 1220 | J37: 855 | K37: 689
B38: 16 | C38: 7:30～8:00 | D38: 3945 | E38: 6 | F38: 265 | G38: 569 | H38: 463 | I38: 1140 | J38: 846 | K38: 656
B39: 17 | C39: 8:00～8:30 | D39: 4018 | E39: 6 | F39: 264 | G39: 565 | H39: 489 | I39: 1211 | J39: 825 | K39: 658
B40: 18 | C40: 8:30～9:00 | D40: 3999 | E40: 6 | F40: 289 | G40: 535 | H40: 414 | I40: 1265 | J40: 865 | K40: 625
A41: ブロック④ | B41: 19 | C41: 9:00～9:30
B42: 20 | C42: 9:30～10:00
B43: 21 | C43: 10:00～10:30
B44: 22 | C44: 10:30～11:00
B45: 23 | C45: 11:00～11:30
B46: 24 | C46: 11:30～12:00
A47: ブロック⑤ | B47: 25 | C47: 12:00～12:30
B48: 26 | C48: 12:30～13:00
B49: 27 | C49: 13:00～13:30
B50: 28 | C50: 13:30～14:00
B51: 29 | C51: 14:00～14:30
B52: 30 | C52: 14:30～15:00
A53: ブロック⑥ | B53: 31 | C53: 15:00～15:30
B54: 32 | C54: 15:30～16:00
B55: 33 | C55: 16:00～16:30
B56: 34 | C56: 16:30～17:00
B57: 35 | C57: 17:00～17:30
B58: 36 | C58: 17:30～18:00
A59: ブロック⑦ | B59: 37 | C59: 18:00～18:30
B60: 38 | C60: 18:30～19:00
B61: 39 | C61: 19:00～19:30
B62: 40 | C62: 19:30～20:00
B63: 41 | C63: 20:00～20:30
B64: 42 | C64: 20:30～21:00
A65: ブロック⑧ | B65: 43 | C65: 21:00～21:30
B66: 44 | C66: 21:30～22:00
B67: 45 | C67: 22:00～22:30
B68: 46 | C68: 22:30～23:00
B69: 47 | C69: 23:00～23:30
B70: 48 | C70: 23:30～24:00
B71: 対象約定ブロック合計 | D71: =SUM(D35:D40) -> 23751 | E71: 36 | F71: 1428 | G71: 3388 | H71: 2787 | I71: 7001 | J71: 5150 | K71: 3961 | L71: 0 | M71: 0
